bitfinex-derivatives/quotes_BTCF0:USTF0_20250405
["timestamp","ask_amount","ask_price","bid_price","bid_amount"]
[1743892906831,0.23487169,83036.0,83035.0,0.6108]
[1743892907216,0.10985239,83036.0,83035.0,0.6108]
[1743892907414,0.19418519,83036.0,83035.0,0.62832089]
[1743892907720,0.19518519,83036.0,83035.0,0.62832089]
[1743892908517,0.19518519,83036.0,83035.0,0.6108]
[1743892908906,0.19618519,83036.0,83035.0,0.6108]
[1743892909104,0.22788519,83036.0,83035.0,0.6108]
[1743892909521,0.11185239,83036.0,83035.0,0.6108]
[1743892909720,0.11185239,83036.0,83035.0,0.6951338]
[1743892909909,0.002,83036.0,83035.0,0.7589338]
[1743892910111,0.10837239,83041.0,83038.0,0.0843307]
[1743892910419,0.10837239,83041.0,83039.0,0.1996497]
[1743892910615,0.19270059,83041.0,83039.0,0.40532]
[1743892910820,0.19270009,83041.0,83039.0,0.4896494]
[1743892911326,0.19370009,83041.0,83039.0,0.4896494]
[1743892912208,0.19570009,83041.0,83039.0,0.4896494]
[1743892912413,0.19570009,83041.0,83039.0,0.40532]
[1743892912414,0.0843287,83040.0,83039.0,0.40532]
[1743892912914,0.0858087,83040.0,83039.0,0.40532]
[1743892913519,0.0858087,83040.0,83039.0,0.4234]
[1743892913720,0.0843287,83040.0,83039.0,0.4234]
[1743892913925,0.0863287,83040.0,83039.0,0.4234]
[1743892914121,0.0863287,83040.0,83039.0,0.42336]
[1743892914316,0.1195287,83040.0,83039.0,0.42336]
[1743892915428,0.0863287,83040.0,83039.0,0.42336]
[1743892915824,0.0863287,83040.0,83039.0,0.5076897]
[1743892916131,0.0421613,83046.0,83043.0,0.0843249]
[1743892916328,0.0421613,83046.0,83045.0,0.3608]
[1743892916532,0.0421613,83046.0,83045.0,0.5908]
[1743892916744,0.0421613,83046.0,83045.0,0.6548]
[1743892916932,0.1264839,83046.0,83045.0,0.6548]
[1743892917820,0.1274839,83046.0,83045.0,0.6548]
[1743892918230,0.1289639,83046.0,83045.0,0.6548]
[1743892919320,0.1299639,83046.0,83045.0,0.6548]
[1743892920122,0.1284839,83046.0,83045.0,0.6548]
[1743892920321,0.1274839,83046.0,83045.0,0.6548]
[1743892920728,0.001,83046.0,83045.0,0.6548]
[1743892920923,0.0843157,83053.0,83048.0,0.0421599]
[1743892921130,0.3608,83055.0,83049.0,0.0617]
[1743892921331,0.00148,83055.0,83054.0,0.0843145]
[1743892921530,0.0004,83056.0,83055.0,0.0843135]
[1743892921738,0.0004,83056.0,83055.0,0.3543135]
[1743892921932,0.22783744,83065.0,83059.0,0.0843094]
[1743892922126,0.0324,83064.0,83059.0,0.3443094]
[1743892922333,0.1167052,83064.0,83059.0,0.4060094]
[1743892922536,0.10989239,83060.0,83059.0,0.4060094]
[1743892923332,0.11089239,83060.0,83059.0,0.41514025]
[1743892923733,0.19520079,83060.0,83059.0,0.41514025]
[1743892924835,0.0868284,83060.0,83059.0,0.41514025]
[1743892925229,0.0868284,83060.0,83059.0,0.33083085]
[1743892925829,0.1833284,83060.0,83059.0,0.33083085]
[1743892927426,0.1833284,83060.0,83059.0,0.32061085]
[1743892928433,0.1833284,83060.0,83059.0,0.35331085]
[1743892928735,0.1833284,83060.0,83059.0,0.38411085]
[1743892928931,0.1181284,83060.0,83059.0,0.46842025]
[1743892929133,0.1181284,83060.0,83059.0,0.50102025]
[1743892929734,0.1171284,83060.0,83059.0,0.38411085]
[1743892929934,0.1478284,83060.0,83059.0,0.38411085]
[1743892930736,0.1478284,83060.0,83059.0,0.32361085]
[1743892931235,0.1478284,83060.0,83059.0,0.32561085]
[1743892931540,0.1478284,83060.0,83059.0,0.32461085]
[1743892932047,0.1478284,83060.0,83059.0,0.27313085]
[1743892932341,0.1478284,83060.0,83059.0,0.32461085]
[1743892932829,0.1478284,83060.0,83059.0,0.32261085]
[1743892933033,0.1478284,83060.0,83059.0,0.33969085]
[1743892933328,0.1478284,83060.0,83059.0,0.32161085]
[1743892933539,0.1478284,83060.0,83059.0,0.28721085]
[1743892933837,0.1488284,83060.0,83059.0,0.32161085]
[1743892934238,0.1488284,83060.0,83059.0,0.27013085]
[1743892934542,0.1488284,83060.0,83059.0,0.32161085]
[1743892936636,0.1478284,83060.0,83059.0,0.32161085]
[1743892936841,0.1488284,83060.0,83059.0,0.32161085]
[1743892937441,0.1478284,83060.0,83059.0,0.32061085]
[1743892937640,0.1488284,83060.0,83059.0,0.32061085]
[1743892940446,0.5096284,83060.0,83059.0,0.32061085]
[1743892943151,0.1488284,83060.0,83059.0,0.32061085]
[1743892943346,0.5096284,83060.0,83059.0,0.32061085]
[1743892947053,0.4789284,83060.0,83059.0,0.26913085]
[1743892947250,0.5122284,83060.0,83059.0,0.26913085]
[1743892948156,0.5449284,83060.0,83059.0,0.26913085]
[1743892949257,0.4789284,83060.0,83059.0,0.35344025]
[1743892949439,0.4476284,83060.0,83059.0,0.44544025]
[1743892949744,0.36332,83060.0,83059.0,0.44544025]
[1743892950846,0.36332,83060.0,83059.0,0.44744025]
[1743892951047,0.0868284,83060.0,83059.0,0.44744025]
[1743892951252,0.0843084,83060.0,83059.0,0.44744025]
[1743892951454,0.0843084,83060.0,83059.0,0.44844025]
[1743892952856,0.0843084,83060.0,83059.0,0.46452025]
[1743892953051,0.0843084,83060.0,83059.0,0.46652025]
[1743892953651,0.0843084,83060.0,83059.0,0.46552025]
[1743892955365,0.1165084,83060.0,83059.0,0.46552025]
[1743892955554,0.1165084,83060.0,83059.0,0.38121085]
[1743892956059,0.0857884,83060.0,83059.0,0.38121085]
[1743892956262,0.4465884,83060.0,83059.0,0.46452025]
[1743892956463,0.4465884,83060.0,83059.0,0.38021085]
[1743892956860,0.4465884,83060.0,83059.0,0.37921085]
[1743892957262,0.4465884,83060.0,83059.0,0.46352025]
[1743892958264,0.4465884,83060.0,83059.0,0.37921085]
[1743892959167,0.4475884,83060.0,83059.0,0.37921085]
[1743892959366,0.4475884,83060.0,83059.0,0.38021085]
[1743892960053,0.4475884,83060.0,83059.0,0.37921085]
[1743892961163,0.4465884,83060.0,83059.0,0.37921085]
[1743892961360,0.4475884,83060.0,83059.0,0.46352025]
[1743892962866,0.4465884,83060.0,83059.0,0.46352025]
[1743892963171,0.4475884,83060.0,83059.0,0.46352025]
[1743892963666,0.4475884,83060.0,83059.0,0.37921085]
[1743892968162,0.4475884,83060.0,83059.0,0.66700335]
[1743892968471,0.4465884,83060.0,83059.0,0.66700335]
[1743892968668,0.4475884,83060.0,83059.0,0.66700335]
[1743892969265,0.4465884,83060.0,83059.0,0.66700335]
[1743892969576,0.4475884,83060.0,83059.0,0.66700335]
[1743892970074,0.4465884,83060.0,83059.0,0.66700335]
[1743892970263,0.4788884,83060.0,83059.0,0.66700335]
[1743892971771,0.4778884,83060.0,83059.0,0.66700335]
[1743892971976,0.4788884,83060.0,83059.0,0.66700335]
[1743892972272,0.4788884,83060.0,83059.0,0.61812335]
[1743892973375,0.4778884,83060.0,83059.0,0.61812335]
[1743892973673,0.4788884,83060.0,83059.0,0.61812335]
[1743892974875,0.5110884,83060.0,83059.0,0.61812335]
[1743892975172,0.4788884,83060.0,83059.0,0.61812335]
[1743892975385,0.4778884,83060.0,83059.0,0.61812335]
[1743892975573,0.4788884,83060.0,83059.0,0.61812335]
[1743892975966,0.4788884,83060.0,83059.0,0.55692335]
[1743892976162,0.5095884,83060.0,83059.0,0.46602155]
[1743892976363,0.5105884,83060.0,83059.0,0.29692335]
[1743892976563,0.0421568,83055.0,83053.0,8e-05]
[1743892976868,0.5084145,83054.0,83053.0,0.28]
[1743892978066,0.5098945,83054.0,83053.0,0.28]
[1743892978272,0.5098945,83054.0,83053.0,0.28903792]
[1743892978872,0.5108945,83054.0,83053.0,0.28903792]
[1743892979965,0.4791945,83054.0,83053.0,0.28903792]
[1743892980366,0.4791945,83054.0,83053.0,0.35203792]
[1743892981788,0.5108945,83054.0,83053.0,0.35203792]
[1743892983579,0.5108945,83054.0,83053.0,0.39984063]
[1743892985982,0.4791945,83054.0,83053.0,0.39984063]
[1743892988884,0.4475945,83054.0,83053.0,0.48415613]
[1743892989682,0.4475945,83054.0,83053.0,0.39984063]
[1743892990190,0.4475945,83054.0,83053.0,0.45128063]
[1743892990477,0.4465945,83054.0,83053.0,0.45128063]
[1743892991277,0.4475945,83054.0,83053.0,0.45228063]
[1743892991483,0.4797945,83054.0,83053.0,0.45228063]
[1743892991884,0.4787945,83054.0,83053.0,0.45128063]
[1743892992089,0.4797945,83054.0,83053.0,0.45128063]
[1743892994583,0.4787945,83054.0,83053.0,0.45128063]
[1743892995076,0.5411945,83054.0,83053.0,0.45128063]
[1743892995391,0.5421945,83054.0,83053.0,0.45128063]
[1743892995580,0.4797945,83054.0,83053.0,0.45128063]
[1743892997793,0.4787945,83054.0,83053.0,0.45128063]
[1743892997993,0.4797945,83054.0,83053.0,0.45128063]
[1743892998602,0.4787945,83054.0,83053.0,0.45128063]
[1743892998785,0.4797945,83054.0,83053.0,0.45128063]
[1743892999186,0.4797945,83054.0,83053.0,0.45228063]
[1743893000184,0.4787945,83054.0,83053.0,0.45228063]
[1743893000387,0.4797945,83054.0,83053.0,0.45228063]
[1743893001394,0.4797945,83054.0,83053.0,0.45128063]
[1743893002094,0.4475945,83054.0,83053.0,0.45128063]
[1743893003294,0.4465945,83054.0,83053.0,0.45128063]
[1743893003495,0.4783945,83054.0,83053.0,0.45128063]
[1743893003681,0.4783945,83054.0,83053.0,0.39984063]
[1743893004087,0.5105945,83054.0,83053.0,0.39984063]
[1743893007589,0.61896689,83054.0,83053.0,0.39984063]
[1743893011503,0.5105945,83054.0,83053.0,0.39984063]
[1743893011804,0.1497945,83054.0,83053.0,0.39984063]
[1743893012000,0.5105945,83054.0,83053.0,0.39984063]
[1743893012507,0.1497945,83054.0,83053.0,0.39984063]
[1743893012704,0.4783945,83054.0,83053.0,0.39984063]
[1743893020007,0.1175945,83054.0,83053.0,0.39984063]
[1743893020214,0.4783945,83054.0,83053.0,0.39984063]
[1743893020414,0.1175945,83054.0,83053.0,0.39984063]
[1743893020616,0.4783945,83054.0,83053.0,0.39984063]
[1743893022311,0.4475945,83054.0,83053.0,0.39984063]
[1743893022622,0.0867945,83054.0,83053.0,0.48415613]
[1743893023718,0.00248,83054.0,83053.0,0.48415613]
[1743893023918,0.001,83054.0,83053.0,0.48415613]
[1743893024217,0.0853145,83054.0,83053.0,0.48415613]
[1743893024711,0.001,83054.0,83053.0,0.48415613]
[1743893025508,0.0867945,83054.0,83053.0,0.48415613]
[1743893026418,0.0867945,83054.0,83053.0,0.53555613]
[1743893026921,0.00248,83054.0,83053.0,0.53555613]
[1743893027231,0.001,83054.0,83053.0,0.53555613]
[1743893029721,0.0853145,83054.0,83053.0,0.53555613]
[1743893033022,0.0843145,83054.0,83053.0,0.55563613]
[1743893033217,0.0843145,83054.0,83053.0,0.53755613]
[1743893033524,0.0843145,83054.0,83053.0,0.55863613]
[1743893037330,0.0843145,83054.0,83053.0,0.50723613]
[1743893037627,0.0843145,83054.0,83053.0,0.55863613]
[1743893038015,0.0843145,83054.0,83053.0,0.42292063]
[1743893038216,0.1146145,83054.0,83053.0,0.42292063]
[1743893038424,0.1146145,83054.0,83053.0,0.47432063]
[1743893038922,0.1146145,83054.0,83053.0,0.47232063]
[1743893039116,0.1146145,83054.0,83053.0,0.55863613]
[1743893039319,0.4754145,83054.0,83053.0,0.47432063]
[1743893039515,0.4754145,83054.0,83053.0,0.55863613]
[1743893039717,0.47697451,83054.0,83053.0,0.55863613]
[1743893039916,0.47697451,83054.0,83053.0,0.55663613]
[1743893040212,0.47697451,83054.0,83053.0,0.55563613]
[1743893040921,0.11617451,83054.0,83053.0,0.55563613]
[1743893041123,0.1146145,83054.0,83053.0,0.55563613]
[1743893041517,0.1146145,83054.0,83053.0,0.55663613]
[1743893042614,0.0843145,83054.0,83053.0,0.55663613]
[1743893042821,0.0843135,83056.0,83055.0,0.1264692]
[1743893043122,0.0857935,83056.0,83055.0,0.44427191]
[1743893044131,0.0857935,83056.0,83055.0,0.44727191]
[1743893046632,0.0857935,83056.0,83055.0,0.44527191]
[1743893046823,0.0857935,83056.0,83055.0,0.44727191]
[1743893047839,0.0857935,83056.0,83055.0,0.44527191]
[1743893048037,0.0857935,83056.0,83055.0,0.44727191]
[1743893050240,0.1180935,83056.0,83055.0,0.44727191]
[1743893050829,0.1180935,83056.0,83055.0,0.41435941]
[1743893051340,0.1508935,83056.0,83055.0,0.41435941]
[1743893052334,0.1508935,83056.0,83055.0,0.41335941]
[1743893052530,0.1508935,83056.0,83055.0,0.36295941]
[1743893052730,0.1508935,83056.0,83055.0,0.41435941]
[1743893053131,0.1508935,83056.0,83055.0,0.43243941]
[1743893053830,0.1508935,83056.0,83055.0,0.42943941]
[1743893054036,0.1508935,83056.0,83055.0,0.43143941]
[1743893055731,0.1508935,83056.0,83055.0,0.43243941]
[1743893055936,0.1508935,83056.0,83055.0,0.43043941]
[1743893056143,0.1508935,83056.0,83055.0,0.43243941]
[1743893056742,0.1508935,83056.0,83055.0,0.43143941]
[1743893057637,0.00148,83056.0,83055.0,0.43143941]
[1743893057839,0.00148,83056.0,83055.0,0.46473941]
[1743893058541,0.0857925,83056.0,83055.0,0.46473941]
[1743893059247,0.00148,83056.0,83055.0,0.46573941]
[1743893060159,0.0843115,83057.0,83056.0,0.0843125]
[1743893060366,0.0843115,83057.0,83056.0,0.37211521]
[1743893060559,0.1158115,83057.0,83056.0,0.40371521]
[1743893060858,0.0843115,83057.0,83056.0,0.40371521]
[1743893061259,0.0843077,83061.0,83060.0,0.1264615]
[1743893061451,0.0843077,83061.0,83060.0,0.40426421]
[1743893061652,0.1160077,83061.0,83060.0,0.40426421]
[1743893062753,0.4768077,83061.0,83060.0,0.40426421]
[1743893063655,0.4768074,83061.0,83060.0,0.40426421]
[1743893064954,0.4451074,83061.0,83060.0,0.40526421]
[1743893065360,0.4783074,83061.0,83060.0,0.40526421]
[1743893069567,0.4451074,83061.0,83060.0,0.40526421]
[1743893070365,0.4465874,83061.0,83060.0,0.40526421]
[1743893070868,0.4793874,83061.0,83060.0,0.45666421]
[1743893071565,0.39508,83061.0,83060.0,0.45666421]
[1743893071972,0.4793874,83061.0,83060.0,0.45666421]
[1743893073064,0.4793874,83061.0,83060.0,0.47474421]
[1743893074270,0.4793874,83061.0,83060.0,0.42334421]
[1743893074468,0.39508,83061.0,83060.0,0.47470421]
[1743893074669,0.4793874,83061.0,83060.0,0.50730421]
[1743893075256,0.39508,83061.0,83060.0,0.50730421]
[1743893075662,0.4793874,83061.0,83060.0,0.50730421]
[1743893076359,0.4793874,83061.0,83060.0,0.53740421]
[1743893076561,0.39508,83061.0,83060.0,0.53740421]
[1743893076970,0.4793874,83061.0,83060.0,0.53740421]
[1743893079972,0.4793874,83061.0,83060.0,0.48604421]
[1743893080274,0.4793874,83061.0,83060.0,0.53740421]
[1743893083374,0.1185874,83061.0,83060.0,0.53740421]
[1743893085578,0.1185874,83061.0,83060.0,0.41094271]
[1743893085777,0.1809874,83061.0,83060.0,0.49525111]
[1743893086871,0.1809874,83061.0,83060.0,0.43255111]
[1743893087276,0.1809874,83061.0,83060.0,0.29688271]
[1743893087479,0.1809874,83061.0,83060.0,0.27880271]
[1743893088472,0.5417874,83061.0,83060.0,0.27880271]
[1743893088876,0.6917874,83061.0,83060.0,0.27880271]
[1743893089075,0.6917874,83061.0,83060.0,0.04880271]
[1743893090275,0.5417874,83061.0,83060.0,0.04880271]
[1743893096790,0.9025874,83061.0,83060.0,0.04880271]
[1743893097090,0.9025874,83061.0,83060.0,0.05880271]
[1743893098495,0.9025874,83061.0,83060.0,0.011]
[1743893098698,0.9025874,83061.0,83060.0,0.0587914]
[1743893099193,0.9025874,83061.0,83060.0,0.011]
[1743893102801,0.9025874,83061.0,83060.0,0.0413]
[1743893102992,0.9025874,83061.0,83060.0,0.0727]
[1743893107099,0.8401874,83061.0,83060.0,0.0727]
[1743893111789,0.8073874,83061.0,83060.0,0.0727]
[1743893112306,0.8073874,83061.0,83060.0,0.1205149]
[1743893114401,0.8073874,83061.0,83060.0,0.0727]
[1743893114599,0.8380874,83061.0,83060.0,0.0727]
[1743893114906,0.8380874,83061.0,83060.0,0.0627]
[1743893116506,0.8707874,83061.0,83060.0,0.0627]
[1743893116705,0.0843145,83054.0,83053.0,0.29675526]
[1743893116900,0.4451145,83054.0,83053.0,0.32675526]
[1743893117109,0.4451145,83054.0,83053.0,0.11749476]
[1743893117294,0.0843216,83047.0,83046.0,0.0260648]
[1743893117498,0.4451216,83047.0,83046.0,0.12391318]
[1743893117809,0.5096216,83047.0,83046.0,0.12391318]
[1743893118006,0.5111016,83047.0,83046.0,0.0760648]
[1743893118415,0.5111016,83047.0,83046.0,0.0889494]
[1743893119095,0.4784016,83047.0,83046.0,0.0889494]
[1743893119808,0.4784016,83047.0,83046.0,0.1226494]
[1743893120409,0.4784016,83047.0,83046.0,0.1543494]
[1743893123608,0.5111016,83047.0,83046.0,0.0965846]
[1743893123811,0.5111016,83047.0,83044.0,0.00018062]
[1743893123812,0.0843226,83046.0,83044.0,0.00018062]
[1743893124008,0.0843297,83039.0,83037.0,0.032]
[1743893124210,0.4451307,83038.0,83037.0,0.09208]
[1743893124603,0.4451307,83038.0,83037.0,0.10105493]
[1743893124798,0.4451307,83038.0,83037.0,0.18538673]
[1743893125111,0.4466507,83038.0,83037.0,0.10705493]
[1743893125312,0.45887602,83038.0,83037.0,0.10705493]
[1743893125707,0.45887602,83038.0,83037.0,0.10505493]
[1743893126813,0.45887602,83038.0,83037.0,0.10805493]
[1743893132516,0.49157602,83038.0,83037.0,0.10805493]
[1743893133016,0.13077602,83038.0,83037.0,0.10805493]
[1743893133215,0.49157602,83038.0,83037.0,0.10805493]
[1743893133422,0.49157602,83038.0,83037.0,0.12613493]
[1743893136609,0.49157602,83038.0,83037.0,0.15623493]
[1743893138819,0.13077602,83038.0,83037.0,0.15623493]
[1743893139009,0.49157602,83038.0,83037.0,0.15623493]
[1743893143916,0.52407602,83038.0,83037.0,0.15623493]
[1743893144319,0.52407602,83038.0,83037.0,0.13815493]
[1743893146630,0.52407602,83038.0,83037.0,0.07605493]
[1743893147034,0.52407602,83038.0,83037.0,0.10925493]
[1743893149132,0.49157602,83038.0,83037.0,0.10925493]
[1743893149339,0.49157602,83038.0,83037.0,0.14075493]
[1743893149734,0.4466507,83038.0,83037.0,0.22508673]
[1743893150247,0.4466507,83038.0,83037.0,0.14075493]
[1743893151138,0.0858507,83038.0,83037.0,0.14075493]
[1743893152338,0.1159507,83038.0,83037.0,0.14075493]
[1743893153641,0.0858507,83038.0,83037.0,0.24316673]
[1743893154346,0.23474609,83043.0,83042.0,0.0843267]
[1743893154542,0.10925449,83043.0,83042.0,0.4156867]
[1743893154850,0.05935449,83043.0,83042.0,0.6593867]
[1743893155643,0.05935449,83043.0,83042.0,0.6613867]
[1743893156144,0.05935449,83043.0,83042.0,0.5113867]
[1743893156943,0.05935449,83043.0,83042.0,0.5143867]
[1743893157253,0.001,83043.0,83042.0,0.5143867]
[1743893157550,0.0843239,83045.0,83044.0,0.0843246]
[1743893157751,0.0843239,83045.0,83044.0,0.3543246]
[1743893158051,0.0843239,83045.0,83044.0,0.4164246]
[1743893158840,0.0843239,83045.0,83044.0,0.4174246]
[1743893159452,0.00018026,83046.0,83045.0,0.0843236]
[1743893159651,0.08450286,83046.0,83045.0,0.3543236]
[1743893159853,0.08450286,83046.0,83045.0,0.4175236]
[1743893160150,0.08450286,83046.0,83045.0,0.4181636]
[1743893160853,0.0843182,83054.0,83053.0,0.1264677]
[1743893161046,0.08535821,83054.0,83053.0,0.451501]
[1743893161250,0.00104001,83054.0,83053.0,0.451501]
[1743893161555,0.084314,83055.0,83054.0,0.0843145]
[1743893161877,0.085314,83055.0,83054.0,0.4989145]
[1743893163645,0.085314,83055.0,83054.0,0.5019145]
[1743893163855,0.085314,83055.0,83054.0,0.5039145]
[1743893164051,0.085314,83055.0,83054.0,0.5009145]
[1743893164253,0.085314,83055.0,83054.0,0.5039145]
[1743893166258,0.115514,83055.0,83054.0,0.5039145]
[1743893166743,0.115514,83055.0,83054.0,0.5009145]
[1743893167042,0.115514,83055.0,83054.0,0.5039145]
[1743893168754,0.085314,83055.0,83054.0,0.5039145]
[1743893169458,0.116614,83055.0,83054.0,0.5039145]
[1743893171259,0.18567764,83081.0,83062.0,0.0843064]
[1743893171554,0.0421505,83068.0,83062.0,0.3543064]
[1743893171751,0.0421505,83068.0,83062.0,0.4202064]
[1743893171953,0.0843028,83066.0,83062.0,0.4202064]
[1743893172159,0.0842983,83070.0,83062.0,0.4202064]
[1743893172361,0.1160979,83072.0,83071.0,0.0842972]
[1743893172562,0.1160979,83072.0,83071.0,0.4156172]
[1743893173355,0.1160979,83072.0,83071.0,0.4336972]
[1743893173759,0.1487979,83072.0,83071.0,0.4977972]
[1743893174356,0.1517979,83072.0,83071.0,0.4977972]
[1743893174555,0.1849979,83072.0,83071.0,0.4977972]
[1743893174757,0.1869979,83072.0,83071.0,0.4977972]
[1743893175066,0.1849979,83072.0,83071.0,0.4977972]
[1743893175253,0.1857579,83072.0,83071.0,0.4984772]
[1743893176259,0.1837579,83072.0,83071.0,0.4984772]
[1743893177169,0.1837579,83072.0,83071.0,0.35008]
[1743893189396,0.0860579,83072.0,83071.0,0.4343772]
[1743893189597,0.1188579,83072.0,83071.0,0.5005772]
[1743893189797,0.03456,83072.0,83071.0,0.5005772]
[1743893190399,0.00176,83072.0,83071.0,0.5005772]
[1743893191099,0.1169847,83084.0,83073.0,0.0421475]
[1743893191400,0.0842861,83082.0,83074.0,0.51843707]
[1743893191601,0.1271892,83082.0,83074.0,0.77919707]
[1743893191804,0.0842881,83080.0,83074.0,0.77919707]
[1743893191988,0.0849281,83080.0,83074.0,0.77919707]
[1743893192193,0.1146891,83079.0,83078.0,0.0842901]
[1743893192393,0.1154491,83079.0,83078.0,0.3150501]
[1743893192603,0.1154491,83079.0,83078.0,0.3473501]
[1743893192994,0.1154491,83079.0,83078.0,0.3654301]
[1743893193298,0.1146891,83079.0,83078.0,0.3473501]
[1743893193599,0.1155291,83079.0,83078.0,0.3654301]
[1743893193801,0.1166891,83079.0,83078.0,0.3654301]
[1743893194317,0.0862891,83079.0,83078.0,0.3654301]
[1743893194802,0.0882891,83079.0,83078.0,0.4167501]
[1743893200398,0.1495891,83079.0,83078.0,0.33246]
[1743893200600,0.1815491,83079.0,83078.0,0.33246]
[1743893201698,0.1815491,83079.0,83078.0,0.24884]
[1743893202004,0.1815491,83079.0,83078.0,0.23076]
[1743893209907,0.3315491,83079.0,83078.0,0.00076]
[1743893210103,0.0842901,83078.0,83077.0,8e-05]
[1743893210303,0.1481301,83078.0,83077.0,8e-05]
[1743893210499,0.0842972,83071.0,83070.0,8e-05]
[1743893210705,0.4457372,83071.0,83070.0,0.04008]
[1743893211209,0.0843023,83066.0,83065.0,8.512e-05]
[1743893211415,0.4458623,83066.0,83065.0,0.00084512]
[1743893211603,0.5417623,83066.0,83065.0,0.00084512]
[1743893212008,0.0421532,83062.0,83060.0,0.35921584]
[1743893212213,0.5092074,83061.0,83060.0,0.36985584]
[1743893212412,0.5099274,83061.0,83060.0,0.36985584]
[1743893213123,0.0843145,83054.0,83053.0,0.41062671]
[1743893213313,0.4460345,83054.0,83053.0,0.38623371]
[1743893213518,0.0843297,83039.0,83037.0,0.00905493]
[1743893213813,0.4451297,83039.0,83038.0,0.78482092]
[1743893214118,0.80704971,83039.0,83038.0,0.28076]
[1743893214817,0.87134971,83039.0,83038.0,0.28076]
[1743893215719,0.87143483,83039.0,83038.0,0.28076]
[1743893215920,0.87143483,83039.0,83038.0,0.28476]
[1743893216221,0.87143483,83039.0,83038.0,0.28776]
[1743893216811,0.88335624,83039.0,83038.0,0.28776]
[1743893217014,0.88335624,83039.0,83038.0,0.35096]
[1743893217320,0.85165624,83039.0,83038.0,0.4352907]
[1743893217718,0.83973483,83039.0,83038.0,0.4352907]
[1743893218018,0.44633483,83039.0,83038.0,0.4352907]
[1743893218218,0.36200513,83039.0,83038.0,0.4352907]
[1743893218713,0.36200513,83039.0,83038.0,0.5852907]
[1743893218919,0.00018062,83047.0,83046.0,0.0843226]
[1743893219119,0.00018062,83047.0,83046.0,0.4488426]
[1743893219904,0.00018062,83047.0,83046.0,0.5988426]
[1743893220109,0.3608,83051.0,83050.0,0.0843186]
[1743893220315,0.36156,83051.0,83050.0,0.3649586]
[1743893220509,0.36156,83051.0,83050.0,0.5142786]
[1743893221112,0.00076,83051.0,83050.0,0.5142786]
[1743893221320,0.04233612,83059.0,83058.0,0.0843104]
[1743893221521,0.04309612,83059.0,83058.0,0.3649504]
[1743893221710,0.04309612,83059.0,83058.0,0.4297504]
[1743893223421,0.08525002,83059.0,83058.0,0.4307504]
[1743893223718,0.00094062,83059.0,83058.0,0.4307504]
[1743893223919,0.08525002,83059.0,83058.0,0.4307504]
[1743893224216,0.00094062,83059.0,83058.0,0.4307504]
[1743893224421,0.00018062,83059.0,83058.0,0.4307504]
[1743893224811,0.00018062,83059.0,83058.0,0.4820704]
[1743893225516,0.08449002,83059.0,83058.0,0.4830704]
[1743893225717,0.08525002,83059.0,83058.0,0.4830704]
[1743893226027,0.08525002,83059.0,83058.0,0.4840704]
[1743893226410,0.11845002,83059.0,83058.0,0.4810704]
[1743893226612,0.11845002,83059.0,83058.0,0.28264]
[1743893226813,0.15015002,83059.0,83058.0,0.28264]
[1743893227023,0.15015002,83059.0,83058.0,0.28064]
[1743893227215,0.15015002,83059.0,83058.0,0.28264]
[1743893228313,0.15015002,83059.0,83058.0,0.28464]
[1743893228725,0.15015002,83059.0,83058.0,0.28364]
[1743893228915,0.15015002,83059.0,83058.0,0.28164]
[1743893229310,0.30015002,83059.0,83058.0,0.28164]
[1743893229520,0.15015002,83059.0,83058.0,0.281]
[1743893229824,0.15015002,83059.0,83058.0,0.28064]
[1743893231241,0.35015002,83059.0,83058.0,0.28064]
[1743893231624,0.31845002,83059.0,83058.0,0.28064]
[1743893232425,0.11845002,83059.0,83058.0,0.4283504]
[1743893233157,0.08525002,83059.0,83058.0,0.4283504]
[1743893233362,0.08525002,83059.0,83058.0,0.4777304]
[1743893236567,0.08525002,83059.0,83058.0,0.36312]
[1743893236763,0.08525002,83059.0,83058.0,0.28164]
[1743893236764,0.11795002,83059.0,83058.0,0.28164]
[1743893237058,0.0843175,83051.0,83050.0,0.00018062]
[1743893237255,0.44615751,83051.0,83050.0,0.01026062]
[1743893237563,0.54145751,83051.0,83050.0,0.01018062]
[1743893238468,0.54145751,83051.0,83050.0,0.01318062]
[1743893242150,0.54145751,83051.0,83050.0,0.12939922]
[1743893242151,0.50815751,83051.0,83050.0,0.12939922]
[1743893242551,0.50815751,83051.0,83050.0,0.15959922]
[1743893242951,0.44615751,83051.0,83050.0,0.15959922]
[1743893243754,0.47655751,83051.0,83050.0,0.15959922]
[1743893246046,0.44615751,83051.0,83050.0,0.15959922]
[1743893249833,0.44615751,83051.0,83050.0,0.12660062]
[1743893250039,0.50735751,83051.0,83050.0,0.12660062]
[1743893250534,0.50735751,83051.0,83050.0,0.07528062]
[1743893250733,0.50735751,83051.0,83050.0,0.01318062]
[1743893256430,0.50735751,83051.0,83050.0,0.04438062]
[1743893256631,0.50735751,83051.0,83050.0,0.07588062]
[1743893257435,0.50735751,83051.0,83050.0,0.04438062]
[1743893258633,0.50735751,83051.0,83050.0,0.01318062]
[1743893264042,0.50835751,83051.0,83050.0,0.01118062]
[1743893264239,0.50835751,83051.0,83050.0,0.01018062]
[1743893264946,0.688421,83051.0,83050.0,0.01018062]
[1743893266749,0.687421,83051.0,83050.0,0.01018062]
[1743893266940,0.688421,83051.0,83050.0,0.01018062]
[1743893267545,0.57495189,83051.0,83050.0,0.01018062]
[1743893268447,0.57395189,83051.0,83050.0,0.01018062]
[1743893268649,0.57495189,83051.0,83050.0,0.01018062]
[1743893269148,0.54445189,83051.0,83050.0,0.01018062]
[1743893269349,0.54445189,83051.0,83050.0,0.07348062]
[1743893270748,0.57725189,83051.0,83050.0,0.07348062]
[1743893270946,0.54445189,83051.0,83050.0,0.07348062]
[1743893273048,0.54445189,83051.0,83050.0,0.09156062]
[1743893273355,0.54345189,83051.0,83050.0,0.09156062]
[1743893273553,0.54445189,83051.0,83050.0,0.09156062]
[1743893273954,0.54345189,83051.0,83050.0,0.09156062]
[1743893274157,0.47785751,83051.0,83050.0,0.09156062]
[1743893274456,0.47685751,83051.0,83050.0,0.09156062]
[1743893274649,0.47785751,83051.0,83050.0,0.09156062]
[1743893275752,0.47785751,83051.0,83050.0,0.01018062]
[1743893275953,0.51005751,83051.0,83050.0,0.01018062]
[1743893276447,0.51005751,83051.0,83050.0,0.04128062]
[1743893277457,0.57713505,83051.0,83050.0,0.04128062]
[1743893281159,0.0843186,83050.0,83049.0,0.0313]
[1743893281360,0.08527861,83050.0,83049.0,0.0713]
[1743893281551,0.14807861,83050.0,83049.0,0.0713]
[1743893282956,0.14907861,83050.0,83049.0,0.0713]
[1743893284260,0.87067861,83050.0,83049.0,0.0713]
[1743893284758,0.87067861,83050.0,83049.0,0.1042]
[1743893284960,0.87067861,83050.0,83049.0,0.04]
[1743893285550,0.83977861,83050.0,83049.0,0.04]
[1743893285745,0.83977861,83050.0,83049.0,0.1054]
[1743893285951,0.83877861,83050.0,83049.0,0.1054]
[1743893286154,0.83977861,83050.0,83049.0,0.1054]
[1743893286764,0.90558601,83050.0,83049.0,0.1054]